{"text_format":"1","workbook":"xlsx","n_sheets":1,"sheets":["Pressupost Projecte Ca"],"not_rendered":{"charts":0,"images":2,"macros":1,"external_links":0,"defined_names":6,"comments":1,"pivot_tables":0},"unopened":[],"bounds":{"document_bytes":16777216,"sheet_cells":100000,"rows_first":2000,"rows_last":500,"rows_between":2000,"halvings":0,"cell_chars":16384,"cell_head_chars":4096},"cells_cut":0,"cells_raw":0,"read":"whole","date_system":"1900"}

{"sheet":"Pressupost Projecte Ca","index":0,"n_rows":190,"n_cols":6,"rows_kept":190,"cut":false,"hidden":false,"merged":[]}
[null,null,null,null,null,"Document bàsic 3"]
[null,null,null,null,null,"Àmbit temàtic \"C\": Comunicació i Recerca "]
["Subvencions de l'Ajuntament de Barcelona per a",null,null,null,null,"Modalitat \"a\":Accions de millora de la comunicació de l’oferta de béns, "]
["la promoció i reforç de l'economia social i solidària 2019",null,null,null,null,"productes i serveis d’empreses, entitats i projectes de l’economia social i solidària "]
[null,null,null,null,null,"Cal omplir les cel·les en blanc i si escau afegir les files necessàries "]
[null,null,null,null,null,"Abans d'omplir, consultar anotacions a peu de pàgina"]
[null,null,null,null,null," "]
["DADES BÀSIQUES"]
["Nom de la persona jurídica/física",null,null,null,null,"  "]
["NIF de la persona jurídica/física"]
["Nom del projecte"]
["Import total del projecte"]
["Import imputable a la subvenció municipal"]
["% de l’import sol·licitat a la subvenció municipal a bescanviar en REC (Recurs Econòmic Ciutadà) "]
["Import de l'aportació / Cofinançament de l'entitat",{"$f":"B12-B13","v":0}]
["% de l'import sol·licitat respecte el total del projecte",{"$f":"B13/B12","v":{"$error":"#DIV/0!"}}]
["Data inici del projecte subvencionat (dd/mm/aaaa)"]
["Data fi del projecte subvencionat (dd/mm/aaaa)"]
[]
["PREVISIÓ DE DESPESES DEL PROJECTE"]
[]
["Partides","Import total del projecte","Import imputable a la subvenció municipal","Import de l'aportació / Cofinançament de l'entitat"]
["D1.  Nòmines i seguretat social IRPF (règim general o règim d’autònoms) del personal propi  vinculat al projecte ",{"$f":"SUM(DespesesProjecte[[#This Row],[Import imputable a la subvenció municipal]],DespesesProjecte[[#This Row],[Import de l''aportació / Cofinançament de l''entitat]])","v":0},{"$f":"SUM(C24:C28)","v":0},{"$f":"SUM(D24:D28)","v":0}]
[]
[]
[]
[]
[]
[]
["D2. Rendiments anuals nets de l’empresari/a individual (veure 13.2 bases)",{"$f":"SUM(DespesesProjecte[[#This Row],[Import imputable a la subvenció municipal]],DespesesProjecte[[#This Row],[Import de l''aportació / Cofinançament de l''entitat]])","v":0},{"$f":"SUM(C31:C36)","v":0},{"$f":"SUM(D31:D36)","v":0}]
[]
[]
[]
[]
[]
[]
["TOTAL DE DESPESES DEL PERSONAL (Max 50% de l'import imputable a la subvenció municipal)",{"$f":"SUM(B23,B30)","v":0},{"$f":"SUM(C23,C30)","v":0},{"$f":"SUM(D23,D30)","v":0}]
["D3.  Treballs realitzats per professionals i empreses externes directament vinculades al projecte",{"$f":"SUM(DespesesProjecte[[#This Row],[Import imputable a la subvenció municipal]],DespesesProjecte[[#This Row],[Import de l''aportació / Cofinançament de l''entitat]])","v":0},{"$f":"SUM(C39:C43)","v":0},{"$f":"SUM(D39:D43)","v":0}]
[]
[]
[]
[]
[]
["D4. Lloguer de bens mobles/immobles directament vinculats al projecte",{"$f":"SUM(DespesesProjecte[[#This Row],[Import imputable a la subvenció municipal]],DespesesProjecte[[#This Row],[Import de l''aportació / Cofinançament de l''entitat]])","v":0},{"$f":"SUM(C45:C49)","v":0},{"$f":"SUM(D45:D49)","v":0}]
[]
[]
[]
[]
[]
["D5. Adquisició de materials i béns consumibles íntegrament imputables al projecte",{"$f":"SUM(DespesesProjecte[[#This Row],[Import imputable a la subvenció municipal]],DespesesProjecte[[#This Row],[Import de l''aportació / Cofinançament de l''entitat]])","v":0},{"$f":"SUM(C51:C55)","v":0},{"$f":"SUM(D51:D55)","v":0}]
[]
[]
[]
[]
[]
["D6. Transport – missatgeria imputables al projecte",{"$f":"SUM(DespesesProjecte[[#This Row],[Import imputable a la subvenció municipal]],DespesesProjecte[[#This Row],[Import de l''aportació / Cofinançament de l''entitat]])","v":0},{"$f":"SUM(C57:C61)","v":0},{"$f":"SUM(D57:D61)","v":0}]
[]
[]
[]
[]
[]
["D7. Publicitat i propaganda de les activitats directament vinculades al projecte",{"$f":"SUM(DespesesProjecte[[#This Row],[Import imputable a la subvenció municipal]],DespesesProjecte[[#This Row],[Import de l''aportació / Cofinançament de l''entitat]])","v":0},{"$f":"SUM(C63:C67)","v":0},{"$f":"SUM(D63:D67)","v":0}]
[]
[]
[]
[]
[]
["D8.  Allotjament i dietes, del personal contractat i voluntaris",{"$f":"SUM(DespesesProjecte[[#This Row],[Import imputable a la subvenció municipal]],DespesesProjecte[[#This Row],[Import de l''aportació / Cofinançament de l''entitat]])","v":0},{"$f":"SUM(C69:C73)","v":0},{"$f":"SUM(D69:D73)","v":0}]
[]
[]
[]
[]
[]
["D9.  Ajuts al transport per als/les participants dels projectes en cas que sigui necessari de manera justificada",{"$f":"SUM(DespesesProjecte[[#This Row],[Import imputable a la subvenció municipal]],DespesesProjecte[[#This Row],[Import de l''aportació / Cofinançament de l''entitat]])","v":0},{"$f":"SUM(C75:C79)","v":0},{"$f":"SUM(D75:D79)","v":0}]
[]
[]
[]
[]
[]
["D10.  Viatges i desplaçaments imputables a les activitats del projecte",{"$f":"SUM(DespesesProjecte[[#This Row],[Import imputable a la subvenció municipal]],DespesesProjecte[[#This Row],[Import de l''aportació / Cofinançament de l''entitat]])","v":0},{"$f":"SUM(C81:C85)","v":0},{"$f":"SUM(D81:D85)","v":0}]
[]
[]
[]
[]
[]
["D11. Tributs, quan siguin abonats directament per la persona jurídica o física beneficiària",{"$f":"SUM(DespesesProjecte[[#This Row],[Import imputable a la subvenció municipal]],DespesesProjecte[[#This Row],[Import de l''aportació / Cofinançament de l''entitat]])","v":0},{"$f":"SUM(C87:C91)","v":0},{"$f":"SUM(D87:D91)","v":0}]
[]
[]
[]
[]
[]
["D12.  Despeses de l’informe d’auditoria, quan sigui obligatòria la seva presentació per import de la subvenció",{"$f":"SUM(DespesesProjecte[[#This Row],[Import imputable a la subvenció municipal]],DespesesProjecte[[#This Row],[Import de l''aportació / Cofinançament de l''entitat]])","v":0},{"$f":"SUM(C93:C97)","v":0},{"$f":"SUM(D93:D97)","v":0}]
[]
[]
[]
[]
[]
["D13.  Altres despeses que de manera justificada i per la tipologia del projecte puguin imputar-se directament al projecte",{"$f":"SUM(DespesesProjecte[[#This Row],[Import imputable a la subvenció municipal]],DespesesProjecte[[#This Row],[Import de l''aportació / Cofinançament de l''entitat]])","v":0},{"$f":"SUM(C99:C103)","v":0},{"$f":"SUM(D99:D103)","v":0}]
[]
[]
[]
[]
[]
["TOTAL D'ALTRES DESPESES DIRECTES ",{"$f":"SUM(B38,B44,B50,B56,B62,B68,B74,B80,B86,B92,B98)","v":0},{"$f":"SUM(C38,C44,C50,C56,C62,C68,C74,C80,C86,C92,C98)","v":0},{"$f":"SUM(D38,D44,D50,D56,D62,D68,D74,D80,D86,D92,D98)","v":0}]
["TOTAL DESPESES DIRECTES (aquelles que s’identifiquen directament amb el projecte)",{"$f":"SUM(B37,B104)","v":0},{"$f":"SUM(C37,C104)","v":0},{"$f":"SUM(D37,,D104)","v":0}]
["I1.  Personal de suport al projecte (nòmines i seguretat social)",{"$f":"SUM(DespesesProjecte[[#This Row],[Import imputable a la subvenció municipal]],DespesesProjecte[[#This Row],[Import de l''aportació / Cofinançament de l''entitat]])","v":0},{"$f":"SUM(C107:C111)","v":0},{"$f":"SUM(D107:D111)","v":0}]
[]
[]
[]
[]
[]
["I2.  Assegurances",{"$f":"SUM(DespesesProjecte[[#This Row],[Import imputable a la subvenció municipal]],DespesesProjecte[[#This Row],[Import de l''aportació / Cofinançament de l''entitat]])","v":0},{"$f":"SUM(C113:C117)","v":0},{"$f":"SUM(D113:D117)","v":0}]
[]
[]
[]
[]
[]
["I3.  Amortització",{"$f":"SUM(DespesesProjecte[[#This Row],[Import imputable a la subvenció municipal]],DespesesProjecte[[#This Row],[Import de l''aportació / Cofinançament de l''entitat]])","v":0},{"$f":"SUM(C119:C123)","v":0},{"$f":"SUM(D119:D123)","v":0}]
[]
[]
[]
[]
[]
["I4.  Lloguer de béns immobles.",{"$f":"SUM(DespesesProjecte[[#This Row],[Import imputable a la subvenció municipal]],DespesesProjecte[[#This Row],[Import de l''aportació / Cofinançament de l''entitat]])","v":0},{"$f":"SUM(C125:C129)","v":0},{"$f":"SUM(D125:D129)","v":0}]
[]
[]
[]
[]
[]
["I5.  Adquisició de materials i béns consumibles parcialment imputables al projecte.",{"$f":"SUM(DespesesProjecte[[#This Row],[Import imputable a la subvenció municipal]],DespesesProjecte[[#This Row],[Import de l''aportació / Cofinançament de l''entitat]])","v":0},{"$f":"SUM(C131:C135)","v":0},{"$f":"SUM(D131:D135)","v":0}]
[]
[]
[]
[]
[]
["I6.  Manteniment d’edificis i/o instal•lacions.",{"$f":"SUM(DespesesProjecte[[#This Row],[Import imputable a la subvenció municipal]],DespesesProjecte[[#This Row],[Import de l''aportació / Cofinançament de l''entitat]])","v":0},{"$f":"SUM(C137:C141)","v":0},{"$f":"SUM(D137:D141)","v":0}]
[]
[]
[]
[]
[]
["I.7  Comunicacions (telèfon, correus, connexió a internet)",{"$f":"SUM(DespesesProjecte[[#This Row],[Import imputable a la subvenció municipal]],DespesesProjecte[[#This Row],[Import de l''aportació / Cofinançament de l''entitat]])","v":0},{"$f":"SUM(C143:C147)","v":0},{"$f":"SUM(D143:D147)","v":0}]
[]
[]
[]
[]
[]
["I.8  Despeses financeres",{"$f":"SUM(DespesesProjecte[[#This Row],[Import imputable a la subvenció municipal]],DespesesProjecte[[#This Row],[Import de l''aportació / Cofinançament de l''entitat]])","v":0},{"$f":"SUM(C149:C153)","v":0},{"$f":"SUM(D149:D153)","v":0}]
[]
[]
[]
[]
[]
["I.9  Subministraments ",{"$f":"SUM(DespesesProjecte[[#This Row],[Import imputable a la subvenció municipal]],DespesesProjecte[[#This Row],[Import de l''aportació / Cofinançament de l''entitat]])","v":0},{"$f":"SUM(C155:C159)","v":0},{"$f":"SUM(D155:D159)","v":0}]
[]
[]
[]
[]
[]
["I.10 Treball realitzat per altres empreses, parcialment imputables al projecte (neteja, seguretat...)",{"$f":"SUM(DespesesProjecte[[#This Row],[Import imputable a la subvenció municipal]],DespesesProjecte[[#This Row],[Import de l''aportació / Cofinançament de l''entitat]])","v":0},{"$f":"SUM(C161:C165)","v":0},{"$f":"SUM(D161:D165)","v":0}]
[]
[]
[]
[]
[]
["TOTAL DESPESES INDIRECTES (es podran assignar al projecte fent sevir un percentatge d’assignació) - Màxim 10% de l’import imputable a la subvenció municipal",{"$f":"SUM(B106,B112,B118,B124,B130,B136,B142,B148,B154,B160)","v":0},{"$f":"SUM(C106,C112,C118,C124,C130,C136,C142,C148,C154,C160)","v":0},{"$f":"SUM(D106,D112,D118,D124,D130,D136,D142,D148,D154,D160)","v":0}]
["TOTAL DE DESPESES PREVISTES",{"$f":"SUM(B166,B105)","v":0},{"$f":"SUM(C166,C105)","v":0},{"$f":"SUM(D166,D105)","v":0}]
[]
[]
["1.  La quantia de la subvenció atorgada no superarà el 80% de la despesa total del projecte a subvencionar. "]
["2.  L'import màxim de subvenció per a la modalitat \"a\" de la Comunicació i Recerca (Bb) és 8.000€."]
["3.  En el cas que la sol·licitud presentada sobrepassi l’import màxim, es considerarà com a import sol·licitat el màxim de l'establert a la convocatòria."]
["4.  Es limita amb un màxim del 50% l’import de la subvenció per a despeses de personal propi assignat al projecte."]
["5.  Les despeses indirectes imputades al projecte detallades, no podran superar el 10% de l’import de la subvenció."]
["6.  Només amb caràcter excepcional, els/les empresaris/ies individuals que no tinguin persones treballadores en plantilla"]
["    podran acreditar els seus treballs mitjançant una declaració responsable acompanyada de les declaracions IRPF (model 130) de l’exercici corrent."]
["    El preu/hora imputat al projecte subvencionat no podrà superar la quantitat resultant de dividir els rendiments anuals nets de l’empresari/a individual per 1800."]
["7.  El caràcter subvencionable de la despesa d'amortització estarà subjecte a les condicions següents:"]
["- Que les subvencions no hagin contribuït a la compra dels béns."]
["- Que l'amortització es calculi de conformitat amb les normes de comptabilitat generalment acceptades."]
["- Que el cost es refereixi al període subvencionable."]
["8.  En cap cas es consideraran despeses subvencionables:"]
["- Els impostos indirectes quan siguin susceptibles de recuperació o compensació, ni els impostos sobre la renda."]
["- Les despeses d'inversió, incloses les adquisicions de béns mobles."]
["- Les despeses realitzades amb data anterior a l'inici del projecte i data posterior a la finalització del projecte."]
["- Altres despeses que s'indiquin a la convocatòria."]
["9.  Entre la resolució provisional i definitiva s’acrediti la constitució de la cooperativa o societat laboral,"]
["      i s’acrediti amb la presentació dels documents d’inscripció en el registre corresponent i l’alta censal."]
["10. Quan s'hagi de fer despeses de més de 12.000 €, sense IVA, en el cas de prestacions de serveis o lliurament de béns i per aquelles despeses de més de 30.000 €, sense IVA"]
["       en el cas d'execució d'obres, hauran d'incorporar tres pressupostos sol·licitats i argumentar el motiu de l'adjudicació en el cas de no ser la proposta més avantatjosa econòmicament."]